bitfinex-derivatives/quotes_ETHF0:USTF0_20210110
["timestamp","ask_amount","ask_price","bid_price","bid_amount"]
[1610312776193,2.3702,1270.9,1270.3,4.00959]
[1610312778282,1.5622,1272.6,1270.3,4.00959]
[1610312778641,4.00959,1271.9,1271.7,4.00959]
[1610312778768,6.34209,1271.9,1271.7,4.00959]
[1610312778878,2.3325,1271.9,1271.7,4.00959]
[1610312778995,2.3325,1271.9,1270.1,1.7624]
[1610312779953,4.00959,1271.6,1271.1,4.00959]
[1610312779985,4.00959,1271.6,1270.1,1.7624]
[1610312780411,6.35149,1271.6,1270.1,1.7624]
[1610312781381,6.35149,1271.6,1270.1,60.9107]
[1610312781581,4.00959,1270.2,1269.3,4.00959]
[1610312782182,1.8975,1270.6,1269.3,4.00959]
[1610312782582,1.8975,1270.6,1269.3,5.52539]
[1610312783589,4.00959,1269.4,1269.3,1.5158]
[1610312785049,4.00959,1269.4,1268.2,1.8819]
[1610312785534,4.00959,1269.4,1266.1,5.4195]
[1610312785641,4.00959,1269.4,1264.2,1.06422221]
[1610312785642,4.00959,1269.4,1264.4,0.21309153]
[1610312785747,4.00959,1267.8,1267.5,4.00959]
[1610312786688,1.5945,1268.7,1267.5,4.00959]
[1610312786805,1.5945,1268.7,1267.5,5.81449]
[1610312787055,2.2664,1270.1,1267.5,5.81449]
[1610312787172,10.216,1271.5,1267.5,5.81449]
[1610312787300,6.811,1271.5,1267.5,5.81449]
[1610312789275,4.00959,1270.2,1267.5,1.8049]
[1610312790156,4.00959,1270.2,1267.6,1.22633518]
[1610312792375,2.1695,1271.0,1269.0,4.00959]
[1610312792494,2.1695,1271.0,1269.0,5.66799]
[1610312792999,2.71479109,1270.9,1269.0,5.66799]
[1610312795777,4.00959,1270.7,1270.0,4.00959]
[1610312795926,4.00959,1270.7,1269.0,1.6584]
[1610312796520,2.71460029,1271.4,1269.0,1.6584]
[1610312799550,2.71460029,1271.4,1270.0,4.00959]
[1610312799680,2.71460029,1271.4,1270.0,5.89869]
[1610312802213,2.71460029,1271.4,1271.0,4.00959]
[1610312802631,2.71408937,1271.5,1271.0,4.00959]
[1610312805116,4.00959,1271.9,1271.0,4.00959]
[1610312805853,2.71370911,1271.8,1271.0,4.00959]
[1610312807801,2.71370911,1271.8,1270.9,1.929]
[1610312807927,4.00959,1271.0,1270.9,1.929]
[1610312808795,4.00959,1271.0,1270.0,1.8891]
[1610312808933,4.00959,1271.0,1269.0,1.6584]
[1610312809066,4.00959,1271.0,1266.0,0.20955259]
[1610312811508,4.00959,1270.8,1270.4,4.00959]
[1610312811841,2.71436675,1270.9,1270.4,4.00959]
[1610312811956,2.71436675,1270.9,1270.4,5.83739]
[1610312812246,2.71395008,1272.0,1270.4,5.83739]
[1610312813300,2.71395008,1272.0,1270.9,4.00959]
[1610312813390,2.71395008,1272.0,1270.9,6.02629]
[1610312813630,2.71395008,1272.0,1270.9,2.0167]
[1610312814825,4.00959,1271.0,1270.9,2.0167]
[1610312815502,4.00959,1271.0,1266.7,5.6843]
[1610312815503,6.72412447,1271.0,1266.7,5.6843]
[1610312816686,4.00959,1269.3,1268.8,4.00959]
[1610312816777,4.00959,1269.3,1266.7,5.6843]
[1610312817116,4.00959,1269.3,1265.4,0.21116803]
[1610312817221,4.00959,1269.3,1265.1,0.21148899]
[1610312817335,4.00959,1269.3,1266.8,1.22656103]
[1610312817463,1.881,1270.6,1266.8,2.97276103]
[1610312818683,1.8908,1271.1,1266.8,2.97276103]
[1610312818794,4.00959,1270.7,1270.4,4.00959]
[1610312818904,4.00959,1270.7,1267.6,51.9729]
[1610312819012,4.00959,1270.7,1266.8,2.97276103]
[1610312819123,4.00959,1270.7,1266.9,1.22542917]
[1610312820850,2.71468678,1270.6,1270.4,4.00959]
[1610312821073,2.71468678,1270.6,1266.9,96.23892917]
[1610312822865,2.71418543,1271.3,1267.0,1.22409758]
[1610312823197,6.72377543,1271.3,1267.0,1.22409758]
[1610312823599,2.71406174,1271.2,1267.0,1.22409758]
[1610312823920,2.71406174,1271.2,1267.0,31.22409758]
[1610312826080,2.71406174,1271.2,1267.1,1.22356284]
[1610312826215,2.71406174,1271.2,1267.1,2.97676284]
[1610312826364,2.71406174,1271.2,1267.2,30.0]
[1610312826846,44.8529,1271.4,1267.3,1.2229508]
[1610312829323,44.8529,1271.4,1267.4,5.7875]
[1610312829461,4.00959,1270.2,1269.9,4.00959]
[1610312829718,44.8529,1271.4,1269.9,4.00959]
[1610312829838,44.8529,1271.4,1269.9,5.75449]
[1610312830421,2.2645,1272.0,1269.9,5.75449]
[1610312831865,4.00959,1270.9,1270.6,4.00959]
[1610312831906,2.71410163,1271.3,1269.9,1.7449]
[1610312831916,2.2645,1272.0,1269.9,1.7449]
[1610312831921,4.00959,1271.3,1271.0,4.00959]
[1610312832038,4.00959,1271.3,1269.9,1.7449]
[1610312832044,4.00959,1271.3,1267.5,5.8216]
[1610312832070,4.00959,1270.3,1269.8,4.00959]
[1610312832097,1.8444,1272.1,1269.8,4.00959]
[1610312832103,1.8444,1272.1,1269.8,5.60339]
[1610312832124,4.00959,1270.3,1269.8,5.60339]
[1610312832178,4.00959,1270.3,1269.8,1.5938]
[1610312832184,1.6838,1271.8,1269.8,1.5938]
[1610312832250,2.71420492,1271.7,1269.8,1.5938]
[1610312832267,4.00959,1270.9,1270.7,4.00959]
[1610312832328,1.8444,1272.1,1270.7,4.00959]
[1610312832333,66.0914,1272.8,1271.6,4.00959]
[1610312832340,66.0914,1272.8,1271.4,2.4385]
[1610312832341,60.4515,1272.8,1271.4,2.4385]
[1610312832628,30.0,1272.3,1271.4,2.4385]
[1610312833326,32.52246785,1272.3,1271.4,2.4385]
[1610312833728,4.00959,1271.5,1271.4,2.4385]
[1610312834427,4.00959,1271.5,1270.8,4.00959]
[1610312834628,36.53230204,1271.5,1269.8,1.5938]
[1610312834828,36.53230204,1271.5,1269.3,56.0072]
[1610312835627,4.00959,1270.2,1269.9,4.00959]
[1610312836629,2.52313952,1271.4,1269.9,4.00959]
[1610312837028,2.52313952,1271.4,1269.9,5.81509]
[1610312837632,4.00959,1271.0,1269.9,1.8055]
[1610312839134,2.52300368,1271.5,1269.9,1.8055]
[1610312839334,2.3728,1271.9,1269.9,1.8055]
[1610312839535,52.2153,1272.7,1269.9,1.8055]
[1610312839735,4.00959,1271.5,1271.3,4.00959]
[1610312839935,4.00959,1271.5,1269.9,1.8055]
[1610312840734,4.00959,1271.5,1270.0,1.25871524]
[1610312841236,1.8444,1272.1,1270.0,1.25871524]
[1610312841634,4.00959,1271.8,1270.0,1.25871524]
[1610312842237,30.0,1271.7,1270.0,1.25871524]
[1610312843538,2.52299597,1271.6,1270.0,1.25871524]
[1610312843742,4.00959,1270.1,1270.0,1.25871524]
[1610312845345,4.00959,1270.1,1269.9,1.8055]
[1610312845740,34.00959,1270.1,1269.4,4.00959]
[1610312846941,34.00959,1270.1,1265.6,30.0]
[1610312847141,34.00959,1270.1,1265.7,5.6434]
[1610312847342,34.00959,1270.1,1265.7,35.6434]
[1610312847741,4.00959,1269.2,1269.0,4.00959]
[1610312848143,4.00959,1269.2,1265.8,1.26120855]
[1610312849746,4.00959,1269.2,1269.0,4.00959]
[1610312849947,4.00959,1269.2,1269.0,6.14109]
[1610312852150,30.0,1270.1,1269.0,6.14109]
[1610312852553,30.0,1270.5,1269.0,6.14109]
[1610312852952,2.2424,1270.6,1269.0,6.14109]
[1610312853151,30.0,1270.7,1269.0,6.14109]
[1610312853351,1.5587,1271.5,1269.0,6.14109]
[1610312853752,4.00959,1270.9,1270.7,4.00959]
[1610312854153,4.00959,1270.9,1269.0,2.1315]
[1610312855152,4.00959,1270.9,1266.0,30.0]
[1610312855354,4.00959,1270.9,1269.1,1.25982587]
[1610312855755,4.00959,1270.6,1270.3,4.00959]
[1610312857557,4.00959,1270.6,1269.5,48.9235]
[1610312857758,4.00959,1269.9,1269.7,4.00959]
[1610312858356,4.00959,1269.9,1269.5,48.9235]
[1610312859460,30.0,1269.8,1269.5,48.9235]
[1610312859861,4.00959,1269.6,1269.5,48.9235]
[1610312860061,34.00959,1269.6,1269.5,48.9235]
[1610312860863,34.00959,1269.6,1269.1,1.8844]
[1610312861263,34.00959,1269.6,1264.7,5.9777159]
[1610312861464,35.52529,1269.6,1264.7,11.5648]
[1610312861864,35.52529,1269.6,1266.9,4.00959]
[1610312861865,37.0541,1269.6,1266.9,4.00959]
[1610312862063,37.0541,1269.6,1266.9,2.4679]
[1610312863867,2.52578073,1269.5,1267.0,1.26479989]
[1610312864066,30.0,1269.4,1267.0,1.26479989]
[1610312865067,2.52624417,1269.3,1266.9,2.4679]
[1610312865267,34.75914417,1269.3,1266.9,2.4679]
[1610312865867,4.00959,1267.4,1267.3,4.00959]
[1610312866467,4.00959,1267.4,1266.9,2.4679]
[1610312866767,33.7878,1269.3,1266.9,2.4679]
[1610312867267,33.7878,1269.3,1266.9,1.9821]
[1610312867869,4.00959,1267.0,1266.9,1.9821]
[1610312868068,33.7878,1269.3,1266.9,1.9821]
[1610312868269,2.52617379,1269.2,1266.9,1.9821]
[1610312868469,30.0,1269.1,1266.9,1.9821]
[1610312869471,30.0,1269.1,1262.8,5.97876855]
[1610312869673,30.0,1269.1,1262.9,5.8724]
[1610312869870,30.0,1269.1,1265.4,4.00959]
[1610312870070,30.0,1269.1,1265.4,2.4405]
[1610312870270,30.0,1269.0,1265.4,2.4405]
[1610312870470,31.584,1269.0,1265.4,2.4405]
[1610312871471,2.52689368,1268.9,1265.4,2.4405]
[1610312871672,56.4781,1267.8,1265.4,2.4405]
[1610312871871,4.00959,1265.5,1265.4,2.4405]
[1610312872874,5.60129,1265.5,1265.4,2.4405]
[1610312873776,4.00959,1265.5,1265.4,2.4405]
[1610312875175,4.00959,1265.5,1264.5,4.00959]
[1610312875775,4.00959,1265.5,1264.0,58.8669]
[1610312875776,4.00959,1265.0,1264.7,4.00959]
[1610312877619,4.00959,1265.0,1264.0,58.8669]
[1610312877849,4.00959,1264.5,1264.4,4.00959]
[1610312879399,50.7044,1266.3,1264.4,4.00959]
[1610312880349,50.7044,1266.3,1264.4,6.27169]
[1610312880670,50.7044,1266.3,1266.2,4.00959]
[1610312884027,1.584,1269.0,1266.2,4.00959]
[1610312884327,2.2329,1269.3,1266.2,4.00959]
[1610312884496,4.9661,1271.0,1266.2,4.00959]
[1610312885766,4.9661,1271.0,1266.3,7.01746654]
[1610312885894,1.5611,1271.0,1266.3,7.01746654]
[1610312885946,1.5653,1271.0,1266.3,7.01746654]
[1610312885998,1.5556,1271.6,1266.3,7.01746654]
[1610312886047,3.405,1272.2,1266.3,37.01746654]
[1610312886109,3.405,1272.2,1269.6,4.00959]
[1610312886110,4.00959,1270.1,1269.6,4.00959]
[1610312886998,5.57559,1270.1,1266.4,1.26206048]
[1610312887065,4.00959,1270.1,1266.4,1.26206048]
[1610312887206,4.00959,1270.1,1267.1,47.1971]
[1610312887278,4.00959,1270.1,1267.1,48.8449]
[1610312887399,1.05019,1270.5,1267.1,48.8449]
[1610312887795,1.05019,1270.5,1269.2,4.00959]
[1610312887859,1.05019,1270.5,1269.2,6.45319]
[1610312888082,3.405,1271.2,1269.2,6.45319]
[1610312888297,33.405,1272.2,1269.2,6.45319]
[1610312888363,3.405,1272.2,1269.2,6.45319]
[1610312888440,30.0,1272.1,1269.2,6.45319]
[1610312889112,4.00959,1270.3,1269.9,4.00959]
[1610312889535,1.8503,1271.1,1269.9,5.95109]
[1610312890611,4.00959,1270.6,1270.1,4.00959]
[1610312892009,4.00959,1270.6,1269.9,1.9415]
[1610312892342,1.8431,1271.2,1269.7,4.00959]
[1610312892343,6.09059,1270.4,1269.7,4.00959]
[1610312894042,6.09059,1270.4,1269.2,2.4436]
[1610312894187,6.09059,1270.4,1267.1,1.6478]
[1610312894316,6.09059,1270.4,1266.3,5.7523]
[1610312894678,4.00959,1269.2,1268.8,4.00959]
[1610312897558,4.00959,1269.2,1266.3,5.7523]
[1610312898030,4.00959,1268.7,1268.2,4.00959]
[1610312898299,4.00959,1268.7,1266.3,5.7523]
[1610312901347,4.00959,1268.9,1268.3,4.00959]
[1610312901499,4.00959,1268.9,1268.3,6.41009]
[1610312901633,2.2324,1269.7,1268.3,6.41009]
[1610312904190,2.081,1270.4,1268.3,6.41009]
[1610312904373,3.405,1271.2,1268.3,6.41009]
[1610312905121,4.00959,1269.9,1269.4,4.00959]
[1610312905440,4.00959,1269.9,1268.4,5.9323]
[1610312906696,2.49419857,1270.3,1268.4,5.9323]
[1610312906703,6.50378857,1270.3,1269.5,4.00959]
[1610312906715,6.50378857,1270.3,1269.5,6.27519]
[1610312906894,6.50378857,1270.3,1269.5,2.2656]
[1610312906902,4.00959,1270.3,1269.5,2.2656]
[1610312906920,4.00959,1270.3,1269.6,4.00959]
[1610312906991,4.00959,1270.3,1269.8,4.00959]
[1610312906998,4.00959,1270.3,1269.8,5.74339]
[1610312907005,1.8449,1271.1,1269.8,5.74339]
[1610312907028,50.9739,1271.8,1269.8,5.74339]
[1610312907044,47.5689,1271.8,1269.8,5.74339]
[1610312907701,4.81242492,1271.7,1269.8,5.74339]
[1610312907903,4.00959,1271.0,1270.5,4.00959]
[1610312908502,4.00959,1271.0,1269.8,1.7338]
[1610312909903,4.00959,1270.6,1270.3,4.00959]
[1610312910103,2.1876,1271.4,1270.3,5.65979]
[1610312911707,2.1876,1271.4,1270.3,1.6502]
[1610312911907,4.00959,1270.4,1270.3,1.6502]
[1610312912307,2.1876,1271.4,1270.3,1.6502]
[1610312913009,32.1876,1271.4,1270.3,1.6502]
[1610312913411,32.1876,1271.4,1269.8,5.74339]
[1610312913910,4.00959,1270.2,1269.8,5.74339]
[1610312914511,2.2048,1271.0,1269.8,5.74339]
[1610312915914,2.2048,1271.0,1269.7,57.3271]
[1610312916113,4.00959,1269.9,1269.7,57.3271]
[1610312917318,5.75769,1269.9,1269.7,57.3271]
[1610312917517,35.75769,1269.9,1269.7,57.3271]
[1610312918119,5.75769,1269.9,1269.7,57.3271]
[1610312918319,35.75769,1269.9,1269.7,57.3271]
[1610312919720,35.75769,1269.9,1264.6,0.18875945]
[1610312919922,4.00959,1268.4,1265.6,4.00959]
[1610312920120,36.03929,1268.4,1265.6,4.00959]
[1610312920521,36.03929,1268.4,1264.5,11.5883]
[1610312921120,37.63269,1268.4,1264.5,11.5883]
[1610312921820,2.49595875,1268.3,1264.6,1.27216117]
[1610312922021,4.00959,1265.3,1265.0,4.00959]
[1610312922221,30.0,1268.2,1265.0,4.00959]
[1610312922825,30.0,1268.2,1265.2,2.462]
[1610312923022,2.49631175,1268.1,1265.2,2.462]
[1610312923222,34.89201175,1268.1,1265.2,2.462]
[1610312924024,4.00959,1266.3,1266.2,4.00959]
[1610312925726,4.00959,1266.3,1265.2,2.462]
[1610312926028,4.00959,1266.3,1266.1,4.00959]
[1610312926629,2.0899,1266.6,1266.1,4.00959]
[1610312926830,1.8338,1266.9,1266.1,4.00959]
[1610312927029,1.8338,1266.9,1265.8,1.9663]
[1610312927427,1.8338,1266.9,1265.2,2.462]
[1610312927830,1.8338,1266.9,1264.9,1.7986]
[1610312928032,4.00959,1265.9,1265.3,4.00959]
[1610312928432,2.3313,1266.4,1265.3,4.00959]
[1610312928847,2.3313,1266.4,1265.3,6.27169]
[1610312929030,2.3957,1268.1,1265.3,36.27169]
[1610312929231,2.0297,1268.4,1265.3,36.27169]
[1610312929437,3.405,1270.4,1265.3,36.27169]
[1610312929832,30.0,1270.3,1265.3,36.27169]
[1610312930032,4.00959,1268.5,1268.3,4.00959]
[1610312930231,6.47289,1268.5,1268.3,4.00959]
[1610312930631,6.47289,1268.5,1265.4,7.11572984]
[1610312931531,6.47289,1268.5,1265.5,1.27005714]
[1610312931741,6.47289,1268.5,1265.5,59.22035714]
[1610312932137,2.4633,1268.5,1268.1,4.00959]
[1610312932534,1.9787,1268.8,1268.1,6.39229]
[1610312932741,54.5023,1269.5,1268.1,6.39229]
[1610312933843,54.5023,1269.5,1268.1,2.3827]
[1610312934051,58.51189,1269.5,1269.2,4.00959]
[1610312934455,54.5023,1269.5,1269.2,4.00959]
[1610312935346,54.5023,1269.5,1269.0,2.3799]
[1610312938132,54.5023,1269.5,1268.7,2.2575]
[1610312938241,4.00959,1268.8,1268.7,2.2575]
[1610312938922,54.5023,1269.5,1268.7,2.2575]
[1610312940590,54.5023,1269.5,1268.6,4.00959]
[1610312940696,54.5023,1269.5,1269.0,4.00959]
[1610312941269,54.5023,1269.5,1269.0,5.60539]
[1610312941522,1.5671,1272.5,1269.0,5.60539]
[1610312943333,30.0,1271.3,1269.0,5.60539]
[1610312943449,4.00959,1269.7,1269.5,4.00959]
[1610312943562,4.00959,1269.7,1269.0,1.5958]
[1610312945931,2.3643,1270.0,1269.0,1.5958]
[1610312946673,2.3643,1270.0,1268.7,47.5255]
[1610312946737,2.3643,1270.0,1269.6,4.00959]
[1610312947230,2.3643,1270.0,1268.7,47.5255]
[1610312948056,4.00959,1269.2,1269.0,4.00959]
[1610312948456,2.3643,1270.0,1269.0,4.00959]
[1610312948660,4.9418,1270.4,1269.0,5.77869]
[1610312950158,4.9418,1270.4,1269.9,4.00959]
[1610312950363,1.5368,1270.4,1269.9,4.00959]
[1610312950564,1.5368,1270.4,1269.6,1.5886]
[1610312950767,2.4016,1270.7,1269.6,1.5886]
[1610312951976,2.5567855,1270.6,1269.6,1.5886]
[1610312952180,4.00959,1270.5,1270.0,4.00959]
[1610312952966,4.00959,1270.5,1269.6,1.5886]
[1610312953375,2.55677062,1270.4,1269.6,1.5886]
[1610312953575,4.09167062,1270.4,1269.6,1.5886]
[1610312954066,4.00959,1270.2,1269.8,4.00959]
[1610312954584,4.00959,1270.2,1269.0,1.7691]
[1610312955084,4.00959,1270.2,1268.7,1.9307]
[1610312955324,4.00959,1270.2,1268.5,5.6007]
[1610312956258,4.00959,1269.2,1269.0,4.00959]
[1610312956676,4.00959,1269.2,1268.6,1.25470971]
[1610312957332,34.00959,1269.2,1268.6,1.25470971]
[1610312958835,4.00959,1268.7,1268.6,1.25470971]
[1610312958961,6.00919,1268.7,1268.6,1.25470971]
[1610312959322,1.9996,1268.7,1268.5,5.6007]
[1610312959555,1.9996,1268.7,1267.5,4.00959]
[1610312961645,2.447,1269.3,1267.5,4.00959]
[1610312961747,2.447,1269.3,1268.1,61.1416]
[1610312961845,32.447,1269.3,1268.1,61.1416]
[1610312961958,4.00959,1268.2,1268.1,2.1023]
[1610312962302,4.00959,1268.2,1267.2,64.8011]
[1610312964365,34.00959,1268.2,1267.2,64.8011]
[1610312964552,1.9429,1268.2,1267.2,64.8011]
[1610312966853,1.9393,1269.0,1267.3,1.25795358]
[1610312966980,1.9393,1269.0,1267.3,2.89665358]
[1610312967238,2.447,1269.3,1267.3,2.89665358]
[1610312967357,4.00959,1269.6,1268.4,4.00959]
[1610312967474,4.00959,1269.6,1268.4,6.20279]
[1610312970008,63.36679,1269.9,1269.1,4.00959]
[1610312970460,63.36679,1269.9,1269.1,6.14069]
[1610312973152,59.3572,1269.9,1269.1,6.14069]
[1610312973271,59.3572,1269.9,1269.8,4.00959]
[1610312976486,3.405,1270.8,1269.8,4.00959]
[1610312976589,4.00959,1270.0,1269.8,4.00959]
[1610312976743,33.405,1270.8,1269.4,2.0097]
[1610312976889,35.5058,1270.8,1269.4,2.0097]
[1610312977202,35.5058,1270.8,1269.1,2.1311]
[1610312980289,35.5058,1270.8,1268.8,5.794]
[1610312980423,4.00959,1269.0,1268.8,5.794]
[1610312981234,5.87069,1269.0,1268.8,5.794]
[1610312981381,1.8611,1269.0,1268.8,5.794]
[1610312981387,1.8611,1269.0,1268.9,4.00959]
[1610312981394,1.8611,1269.0,1268.8,5.794]
[1610312981465,4.00959,1268.9,1268.8,5.794]
[1610312981474,34.00959,1268.9,1268.8,5.794]
[1610312981507,4.00959,1268.9,1268.8,5.794]
[1610312981512,34.00959,1268.9,1268.8,5.794]
[1610312981526,4.00959,1268.9,1268.8,5.794]
[1610312981538,4.00959,1268.9,1268.8,9.80359]
[1610312981557,4.00959,1268.9,1268.8,5.794]
[1610312988096,1.7957,1269.0,1268.8,5.794]
[1610312988296,1.8032,1269.3,1268.8,5.794]
[1610312990297,4.00959,1268.9,1268.8,5.794]
[1610312991300,6.39809,1268.9,1268.8,5.794]
[1610312993200,6.39809,1268.9,1267.9,2.4947]
[1610312993601,6.39809,1268.9,1267.7,62.8605]
[1610312993802,2.3885,1268.9,1267.7,62.8605]
[1610312994203,4.00959,1268.5,1268.3,4.00959]
[1610312994905,4.00959,1268.5,1267.7,62.8605]
[1610312995103,4.00959,1268.5,1267.8,1.25700376]
[1610312996304,4.00959,1267.9,1267.8,1.25700376]
[1610312997105,32.3885,1268.9,1267.8,1.25700376]
[1610312997304,2.3885,1268.9,1267.8,3.51590376]
[1610312997506,1.8032,1269.3,1267.8,3.51590376]
[1610312997707,5.0922,1269.8,1267.8,3.51590376]
[1610312998307,4.00959,1268.9,1267.8,3.51590376]
[1610312999109,2.2478,1269.1,1267.9,1.25651614]
[1610313000310,4.00959,1269.2,1267.9,1.25651614]
[1610313002311,4.00959,1269.0,1268.8,4.00959]
[1610313003111,4.00959,1269.0,1267.9,1.25651614]
[1610313003713,4.00959,1269.0,1267.8,2.2589]
[1610313004110,4.00959,1269.0,1267.0,5.4791]
[1610313004312,4.00959,1269.0,1268.7,4.00959]
[1610313005112,4.00959,1269.0,1268.8,1.2556893]
[1610313006313,4.00959,1269.0,1268.9,4.00959]
[1610313009619,4.00959,1269.0,1268.5,51.1558]
[1610313010419,4.00959,1269.0,1268.9,4.00959]
[1610313011621,2.3881,1269.4,1268.9,4.00959]
[1610313011821,1.6872,1269.8,1268.9,4.00959]
[1610313012025,10.216,1270.7,1268.9,4.00959]
[1610313012421,10.216,1270.7,1269.9,4.00959]
[1610313012622,3.405,1270.7,1269.9,4.00959]
[1610313014324,4.00959,1270.2,1269.9,4.00959]
[1610313014527,3.405,1270.7,1269.9,4.00959]
[1610313015025,3.405,1270.7,1269.5,2.316]
[1610313016326,4.00959,1269.9,1269.5,6.32559]
[1610313016526,4.00959,1269.9,1269.5,4.00959]
[1610313016926,1.7104,1270.3,1269.5,4.00959]
[1610313018432,5.71999,1270.3,1270.2,4.00959]
[1610313019031,5.71999,1270.3,1269.2,2.1842]
[1610313019232,5.71999,1270.3,1269.0,60.0554]
[1610313020333,4.00959,1269.5,1269.0,64.06499]
[1610313021635,4.00959,1269.5,1269.0,4.00959]
[1610313022036,1.6276,1270.0,1269.0,4.00959]
[1610313022439,4.00959,1269.5,1269.0,4.00959]
[1610313024441,4.00959,1269.1,1268.8,4.00959]
[1610313024641,5.60119,1269.1,1268.8,4.00959]
[1610313024841,5.60119,1269.1,1268.7,58.3144]
[1610313025741,5.60119,1269.1,1268.0,59.3816]
[1610313026445,4.00959,1268.2,1268.0,59.3816]
[1610313027646,4.00959,1268.2,1268.1,1.26062462]
[1610313027846,2.2507,1268.8,1268.1,1.26062462]
[1610313028447,4.00959,1268.4,1268.3,4.00959]
[1610313028847,2.2507,1268.8,1268.3,4.00959]
[1610313030450,2.2507,1268.8,1268.7,4.00959]
[1610313030950,2.2507,1268.8,1268.0,59.3816]
[1610313031950,2.2507,1268.8,1268.1,1.2600055]
[1610313032451,4.00959,1268.6,1268.5,4.00959]
[1610313033252,2.2507,1268.8,1268.5,4.00959]
[1610313033654,1.5916,1269.1,1268.5,4.00959]
[1610313034058,2.4301,1269.6,1268.0,59.3816]
[1610313034256,1.5977,1269.7,1268.0,59.3816]
[1610313034467,4.00959,1268.6,1268.2,4.00959]
[1610313036455,4.00959,1268.4,1268.2,4.00959]
[1610313037757,4.00959,1268.4,1268.0,59.3816]
[1610313038461,4.00959,1268.1,1268.0,59.3816]
[1610313039258,4.00959,1268.1,1268.0,1.26110821]
[1610313040861,34.00959,1268.1,1266.8,4.00959]
[1610313041063,34.00959,1268.1,1266.1,1.26229482]
[1610313041562,4.00959,1268.1,1266.1,1.26229482]
[1610313041962,2.4354,1268.2,1266.1,1.26229482]
[1610313042161,2.4354,1268.2,1266.1,2.86689482]
[1610313042362,1.5853,1268.5,1266.2,30.0]
[1610313042564,4.00959,1268.2,1267.9,4.00959]
[1610313043163,4.00959,1268.2,1266.2,5.7471]
[1610313044165,4.00959,1268.2,1266.3,1.26207741]
[1610313044465,4.00959,1267.3,1266.8,4.00959]
[1610313044865,4.00959,1267.3,1266.3,1.26207741]
[1610313045665,4.00959,1267.3,1266.9,1.2629105]
[1610313045866,4.00959,1267.3,1266.9,3.7390105]
[1610313046566,4.00959,1267.0,1266.9,3.7390105]
[1610313047667,4.00959,1267.0,1266.9,2.4761]
[1610313047867,4.00959,1267.0,1266.1,46.4174]
[1610313048470,4.00959,1266.7,1266.1,46.4174]
[1610313049267,4.00959,1266.7,1266.2,1.26393928]
[1610313050471,4.00959,1266.3,1266.2,1.26393928]
[1610313052474,4.00959,1266.3,1265.4,59.7645]
[1610313054074,4.00959,1266.3,1265.0,4.00959]
[1610313054075,13.12269,1266.3,1265.0,4.00959]
[1610313054575,4.00959,1265.5,1264.6,49.388]
[1610313055376,9.1131,1266.3,1264.6,49.388]
[1610313055576,9.1131,1266.3,1264.7,1.26525032]
[1610313056578,4.00959,1265.9,1265.5,4.00959]
[1610313057776,4.00959,1265.9,1264.7,1.26525032]
[1610313058577,4.00959,1264.9,1264.7,1.26525032]
[1610313060481,4.00959,1265.1,1264.7,5.27484032]
[1610313060681,1.6852,1265.7,1264.7,5.27484032]
[1610313062585,4.00959,1264.8,1264.7,1.26525032]
[1610313063085,4.00959,1264.8,1264.6,49.388]
[1610313063485,4.00959,1264.8,1264.5,4.00959]
[1610313064085,2.1854,1265.2,1264.5,4.00959]
[1610313064287,1.6852,1265.7,1264.5,6.39669]
[1610313064485,1.6191,1266.1,1264.5,6.39669]
[1610313064688,2.2454,1268.1,1264.5,6.39669]
[1610313064887,30.0,1268.1,1265.5,4.00959]
[1610313066188,2.53720535,1268.0,1265.5,4.00959]
[1610313066387,34.59660535,1268.0,1265.5,4.00959]
[1610313066587,4.00959,1265.6,1265.5,4.00959]
[1610313067392,2.3693,1266.2,1265.5,4.00959]
[1610313067592,2.095,1266.5,1265.5,4.00959]
[1610313067792,2.0594,1268.0,1265.5,4.00959]
[1610313068592,4.00959,1267.1,1266.7,4.00959]
[1610313068993,4.00959,1267.1,1265.3,2.4558]
[1610313069396,4.00959,1267.1,1265.6,1.26348613]
[1610313069596,4.00959,1267.1,1265.6,3.19988613]
[1610313070097,2.0594,1268.0,1265.6,3.19988613]
[1610313070499,2.0594,1268.0,1265.7,5.7849]
[1610313070698,4.00959,1267.5,1267.0,4.00959]
[1610313071499,2.0594,1268.0,1267.0,4.00959]
[1610313071698,3.405,1269.1,1267.0,5.98919]
[1610313072097,33.405,1269.1,1267.0,1.9796]
[1610313072698,4.00959,1267.1,1267.0,1.9796]
[1610313072898,4.00959,1267.1,1266.1,47.6297]
[1610313073098,4.00959,1267.1,1265.9,4.00959]
[1610313073498,4.00959,1267.1,1265.7,7.02486333]
[1610313073697,4.00959,1267.1,1265.7,5.7849]
[1610313074099,4.00959,1267.1,1265.6,1.9364]
[1610313074698,2.3923,1267.3,1265.5,4.00959]
[1610313074699,4.00959,1265.8,1265.5,4.00959]
[1610313075102,2.2198,1266.5,1265.5,4.00959]
[1610313076702,4.00959,1266.3,1265.8,4.00959]
[1610313078102,4.00959,1266.3,1263.3,35.6353]
[1610313078304,4.00959,1266.3,1263.3,5.6353]
[1610313078504,4.00959,1266.3,1263.4,5.7712]
[1610313078705,4.00959,1265.8,1263.4,5.7712]
[1610313078904,4.00959,1265.8,1263.4,8.2038]
[1610313079105,5.52419,1265.8,1263.4,8.2038]
[1610313080306,5.52419,1265.8,1263.5,1.2442765]
[1610313080706,4.00959,1265.0,1264.4,4.00959]
[1610313082908,2.4306,1265.4,1264.4,4.00959]
[1610313083107,2.4306,1265.4,1264.4,5.93859]